bitfinex/quotes_ETHUSD_20220308
["timestamp","ask_amount","ask_price","bid_price","bid_amount"]
[1646764486057,0.00357628,2597.8,2597.5,1.92674]
[1646764486257,0.00357628,2597.8,2596.9,0.25]
[1646764486463,0.00357628,2597.8,2597.3,1.92679]
[1646764487256,0.00338349,2597.8,2597.3,1.92679]
[1646764487458,1.1359,2597.7,2597.3,1.92679]
[1646764488059,1.1359,2597.7,2597.1,1.92689]
[1646764488260,1.1359,2597.7,2597.0,1.92678]
[1646764488261,1.6039,2597.7,2597.0,0.3]
[1646764488472,1.1359,2597.5,2597.0,0.3]
[1646764488659,1.1359,2597.3,2596.6,0.3]
[1646764488970,2.09961,2597.3,2596.4,0.88416726]
[1646764489402,2.09961,2597.3,2596.2,0.00390705]
[1646764489602,1.1359,2597.1,2595.9,0.25]
[1646764489800,1.1359,2596.9,2595.9,0.25]
[1646764490000,1.1359,2596.9,2595.9,1.21376]
[1646764490201,1.1359,2596.6,2596.0,3.5]
[1646764490401,1.1359,2596.6,2596.4,0.68987451]
[1646764490608,1.1359,2596.6,2596.5,3.5]
[1646764491103,1.1359,2596.6,2596.4,0.68987451]
[1646764491104,1.1359,2596.6,2596.4,1.95341451]
[1646764491305,1.1359,2596.5,2596.4,1.95341451]
[1646764491510,1.1359,2596.5,2596.4,6.41700451]
[1646764491705,1.1359,2596.5,2596.4,7.09860451]
[1646764491906,1.1359,2596.5,2596.4,6.13506451]
[1646764492306,1.1359,2596.6,2596.5,0.96362]
[1646764492707,1.1359,2596.6,2596.5,1.26362]
[1646764493367,1.1359,2596.6,2596.5,0.3]
[1646764493967,1.92721,2597.0,2596.5,10.1816]
[1646764494176,2.89082,2597.5,2596.7,0.96336]
[1646764494367,2.89082,2597.5,2596.8,3.8816]
[1646764494568,2.89082,2597.5,2596.8,5.72668]
[1646764494967,2.89082,2597.5,2596.8,2.22668]
[1646764495170,2.89082,2597.5,2596.9,0.96334]
[1646764495370,0.96336,2597.4,2597.0,2.22682]
[1646764495574,0.96336,2597.4,2597.0,0.3]
[1646764495774,0.96336,2597.4,2596.4,1.19507]
[1646764495981,0.468,2597.3,2596.4,1.19507]
[1646764496179,1.9278,2597.2,2596.4,1.19507]
[1646764497100,0.9639,2597.1,2596.4,1.19507]
[1646764497298,0.8532067,2596.8,2596.1,0.96388]
[1646764497500,3.0,2596.6,2596.1,0.40369589]
[1646764497701,0.468,2596.5,2595.1,11.21506]
[1646764497903,0.468,2596.5,2595.2,3.5]
[1646764498102,1.43204,2596.5,2595.6,1.92812]
[1646764498301,1.83300733,2596.5,2595.6,2.74486754]
[1646764499211,1.83300733,2596.5,2595.7,0.96402]
[1646764499706,1.36500733,2596.5,2595.8,0.3]
[1646764499907,1.36500733,2596.5,2595.9,0.964]
[1646764500205,0.96404,2596.5,2596.0,0.96387]
[1646764500462,0.96404,2596.5,2596.0,1.26812379]
[1646764501251,0.96404,2596.5,2596.3,1.26383]
[1646764501451,0.96404,2596.5,2596.3,0.96383]
[1646764501652,0.96404,2596.5,2596.1,1.92779]
[1646764501653,0.468,2596.4,2596.1,0.00441349]
[1646764501859,3.468,2596.4,2596.1,0.00295756]
[1646764502054,0.468,2596.4,2596.1,0.00295756]
[1646764502255,0.468,2596.4,2596.1,0.96712756]
[1646764502852,0.96404,2596.5,2596.1,0.96712756]
[1646764503053,0.96404,2596.5,2596.1,0.96417]
[1646764503653,0.96404,2596.5,2596.1,1.26417]
[1646764504411,0.92724306,2596.4,2596.1,1.26417]
[1646764504603,2.85553306,2596.3,2596.1,0.3]
[1646764504801,2.85553306,2596.3,2595.9,0.96414]
[1646764504802,3.85553306,2596.3,2595.9,0.96414]
[1646764505001,1.92829,2596.3,2595.9,0.96414]
[1646764505401,1.92829,2596.3,2596.2,0.0044774]
[1646764505608,1.90829,2596.3,2596.2,0.0044774]
[1646764506607,1.90829,2596.3,2596.1,1.56393]
[1646764506608,1.90829,2596.3,2596.1,1.56840747]
[1646764506806,1.90829,2596.3,2596.1,1.26840747]
[1646764507307,1.90829,2596.3,2596.1,1.56840747]
[1646764507709,0.96414,2596.5,2596.1,1.572885]
[1646764507976,1.32818604,2597.1,2596.3,3.27252]
[1646764508166,1.39584048,2597.3,2596.3,3.57252]
[1646764508167,0.93142683,2597.3,2596.3,3.57252]
[1646764508365,0.93142683,2597.3,2596.6,1.34503]
[1646764508366,0.00418377,2597.3,2596.6,1.34503]
[1646764508569,0.92724306,2597.7,2597.1,6.0]
[1646764508768,0.5,2597.8,2597.2,3.8816]
[1646764508969,0.5,2597.8,2597.3,0.3816]
[1646764509168,0.93619872,2598.2,2597.5,0.3816]
[1646764509368,1.40429808,2598.6,2597.9,0.3816]
[1646764509568,0.3852,2598.7,2597.8,6.0]
[1646764509569,1.40429808,2598.7,2598.1,0.3816]
[1646764509773,0.98050944,2599.1,2598.3,0.3816]
[1646764509774,1.40429808,2598.8,2598.3,0.3816]
[1646764509972,1.40429808,2598.9,2598.4,2.12817562]
[1646764510167,0.98050944,2599.1,2598.8,0.68051361]
[1646764510168,1.40429808,2599.0,2598.8,0.68051361]
[1646764510369,0.98050944,2599.1,2598.9,3.5]
[1646764510370,0.01769944,2599.1,2598.9,3.5]
[1646764510570,0.01769944,2599.1,2598.8,1.06211361]
[1646764510768,0.01769944,2599.1,2598.8,1.66211361]
[1646764510967,1.85092559,2599.6,2598.9,5.0]
[1646764511166,0.5,2599.4,2598.9,5.0]
[1646764511367,0.04092649,2599.5,2599.3,1.65923753]
[1646764511801,1.85329331,2599.7,2599.3,3.22170753]
[1646764512407,0.00236772,2599.7,2599.3,3.22170753]
[1646764512603,0.154078,2599.6,2599.3,3.22170753]
[1646764512902,0.00236772,2599.7,2599.3,3.22170753]
[1646764513304,0.00236772,2599.7,2599.4,4.4623872]
[1646764513505,0.00473544,2599.7,2599.5,6.0]
[1646764513706,0.00409124,2599.6,2599.5,6.3]
[1646764513904,0.0328662,2600.0,2599.6,5.0]
[1646764514105,0.00947088,2599.7,2599.6,5.0]
[1646764514306,0.00947088,2599.7,2599.6,5.87951332]
[1646764514505,0.00947088,2599.7,2599.6,0.87951332]
[1646764514912,0.00080432,2599.6,2599.5,2.52473]
[1646764515105,0.00080432,2599.6,2599.5,1.92473]
[1646764516358,0.00080432,2599.6,2599.5,2.52473]
[1646764516757,0.00080432,2599.6,2599.5,0.92220203]
[1646764516957,0.73323435,2599.0,2598.8,1.92556]
[1646764517158,1.69610435,2599.0,2598.8,1.92556]
[1646764517564,1.67610435,2599.0,2598.8,1.92556]
[1646764517957,1.67610435,2599.0,2598.8,2.79213]
[1646764518362,1.67610435,2599.0,2598.8,0.86657]
[1646764518562,1.67610435,2599.0,2598.7,1.73313]
[1646764519210,1.67610435,2599.0,2598.5,1.73346]
[1646764519610,1.67610435,2599.0,2598.6,0.96296]
[1646764519811,1.67610435,2599.0,2598.8,0.81202486]
[1646764520012,0.71323435,2599.0,2598.9,3.5]
[1646764520227,0.71323435,2599.0,2598.9,0.0012869]
[1646764521919,1.67604435,2599.0,2598.9,0.0012869]
[1646764524853,1.67604435,2599.0,2598.5,0.9642269]
[1646764525054,1.97604435,2599.0,2598.5,1.2642269]
[1646764525260,1.97604435,2599.0,2598.5,2.4308869]
[1646764526059,1.67604435,2599.0,2598.5,1.5642269]
[1646764526260,1.67604435,2599.0,2598.5,5.0642269]
[1646764526462,1.67604435,2599.0,2598.6,1.54054]
[1646764526703,1.67604435,2599.0,2598.7,3.8]
[1646764526902,0.71323435,2599.0,2598.7,3.8]
[1646764527104,0.71323435,2599.0,2598.8,0.85888599]
[1646764527504,0.71323435,2599.0,2598.8,1.62905599]
[1646764527704,0.71323435,2599.0,2598.9,0.3]
[1646764528304,0.71323435,2599.0,2598.8,1.26272]
[1646764528905,0.71323435,2599.0,2598.8,2.03298]
[1646764529113,0.71323435,2599.0,2598.9,4.4215557]
[1646764529306,0.71323435,2599.0,2598.9,0.9215557]
[1646764531363,0.0134377,2599.6,2599.5,0.65731667]
[1646764531758,0.0268754,2599.6,2599.5,0.95731667]
[1646764531960,0.0134377,2599.6,2599.5,0.08129883]
[1646764532165,0.0134377,2599.6,2599.0,1.54006]
[1646764532361,0.96264,2599.5,2599.0,3.7650643]
[1646764532962,0.96264,2599.5,2599.3,1.925]
[1646764533364,0.96264,2599.5,2599.3,2.525]
[1646764533763,0.96264,2599.5,2599.3,0.6]
[1646764534061,0.96264,2599.5,2598.9,1.92548]
[1646764534305,0.96264,2599.5,2598.8,0.3]
[1646764534505,0.96264,2599.5,2598.6,1.81294]
[1646764534805,0.96264,2599.5,2599.2,0.00128131]
[1646764535207,0.96264,2599.5,2599.2,0.00048131]
[1646764535418,0.963,2599.2,2598.6,0.25]
[1646764535612,0.963,2599.2,2598.1,1.92605]
[1646764535613,0.468,2599.1,2598.1,1.92605]
[1646764536012,0.468,2599.1,2597.4,11.5142]
[1646764536417,0.88093754,2598.9,2597.7,0.84936213]
[1646764536611,1.34893754,2598.9,2598.2,0.0039591]
[1646764536812,2.31210754,2598.9,2598.2,0.0039591]
[1646764537410,5.31210754,2598.9,2598.2,0.0039591]
[1646764537611,6.0,2598.8,2597.8,0.96332]
[1646764537811,0.96334,2598.6,2598.2,0.00411697]
[1646764538088,0.468,2598.5,2598.2,0.00411697]
[1646764538302,3.0,2598.4,2597.9,0.3]
[1646764538499,0.468,2598.5,2597.9,0.3]
[1646764539495,0.96334,2598.4,2597.9,0.3]
[1646764540096,0.96334,2598.4,2598.1,0.00304591]
[1646764541102,0.96334,2598.4,2598.1,0.96626591]
[1646764541298,0.96334,2598.4,2598.1,1.56626591]
[1646764541496,0.96334,2598.4,2598.1,1.56749333]
[1646764541715,0.96701077,2598.6,2598.2,3.5]
[1646764542208,0.96701077,2598.6,2598.4,0.71375769]
[1646764542410,0.96701077,2598.6,2598.4,0.96299]
[1646764542611,0.97111178,2598.6,2598.4,1.26299]
[1646764542812,0.96701101,2598.6,2598.3,0.3]
[1646764543013,0.96701101,2598.6,2598.2,2.22597]
[1646764543212,0.96701101,2598.6,2598.3,0.3]
[1646764544211,0.96701101,2598.6,2598.2,2.22597]
[1646764544812,0.96905726,2598.6,2598.5,0.00113418]
[1646764545012,0.97315827,2598.6,2598.5,0.00113418]
[1646764545216,0.96905726,2598.6,2598.2,0.3]
[1646764545467,5.0,2598.5,2598.2,0.3]
[1646764545657,5.0,2598.5,2598.1,0.00415119]
[1646764545858,6.0,2598.5,2598.1,0.00415119]
[1646764546266,1.0,2598.5,2598.1,0.00803013]
[1646764546461,1.0,2598.5,2598.1,1.93010894]
[1646764546462,0.96315,2598.3,2598.1,1.93010894]
[1646764546859,0.96315,2598.3,2598.1,2.23010894]
[1646764547461,0.96315,2598.3,2598.1,2.23401269]
[1646764547661,0.96315,2598.3,2598.2,2.0]
[1646764547861,0.96817977,2598.6,2598.2,2.0]
[1646764548060,0.96817977,2598.6,2598.2,3.26294]
[1646764548262,0.96817977,2598.6,2598.2,3.56294]
[1646764548661,0.96817977,2598.6,2598.5,0.82719155]
[1646764548866,0.96818001,2598.6,2598.5,1.12719155]
[1646764549062,0.96818001,2598.6,2598.5,0.3]
[1646764549310,0.96818001,2598.6,2598.2,0.3]
[1646764549311,0.13580548,2598.3,2598.2,0.3]
[1646764549705,0.13580548,2598.3,2598.1,0.00390382]
[1646764550211,5.65375834,2596.4,2596.1,2.32372954]
[1646764550406,5.65375834,2596.4,2596.3,0.468]
[1646764550407,1.57316075,2596.4,2596.3,0.468]
[1646764550616,1.57316075,2596.4,2596.3,1.95856769]
[1646764550617,1.87316075,2596.4,2596.3,1.95856769]
[1646764550809,1.87316075,2596.4,2596.0,7.42681769]
[1646764551012,1.87316075,2596.4,2596.1,0.468]
[1646764551210,1.87316075,2596.4,2595.8,4.191488]
[1646764551417,1.87316075,2596.4,2595.8,0.79705645]
[1646764551609,1.87316075,2596.4,2595.9,0.3816]
[1646764551809,1.87316075,2596.4,2595.9,12.0116]
[1646764552011,1.87316075,2596.4,2595.9,0.9633529]
[1646764552209,0.25,2596.0,2595.5,1.03948084]
[1646764552410,0.25,2596.0,2594.8,0.944825]
[1646764552411,1.21364,2596.0,2594.8,0.944825]
[1646764552609,1.21364,2596.0,2594.7,3.93828509]
[1646764552610,0.25,2596.0,2595.2,0.3816]
[1646764552810,3.85487,2595.3,2595.1,2.42207]
[1646764553060,0.3,2595.3,2595.1,0.81268976]
[1646764553258,0.25,2595.4,2595.2,0.74181774]
[1646764553463,0.96371,2595.3,2594.5,4.08503687]
[1646764553659,1.26371,2595.3,2594.8,0.3816]
[1646764553863,1.26371,2595.3,2595.1,12.0116]
[1646764554062,1.26371,2595.3,2595.1,6.22987]
[1646764554260,3.5,2596.1,2595.1,6.22987]
[1646764554261,3.5,2595.8,2595.1,6.22987]
[1646764554463,1.57316075,2596.4,2595.3,7.22987]
[1646764554661,1.57316075,2596.4,2595.5,6.22987]
[1646764554864,1.57316075,2596.4,2595.7,6.22987]
[1646764555063,0.154159,2597.3,2595.8,9.72987]
[1646764555064,3.85307,2596.5,2595.8,9.72987]
[1646764555260,2.66351174,2598.2,2595.8,10.72987]
[1646764555261,3.0,2598.2,2595.8,10.72987]
[1646764555464,0.13580548,2598.3,2597.7,1.09617284]
[1646764555667,0.13580548,2598.3,2597.8,0.468]
[1646764555866,1.92554,2598.2,2597.9,2.78542716]
[1646764556067,1.92554,2598.2,2597.9,0.468]
[1646764556265,1.92554,2598.2,2598.0,5.85375]
[1646764556266,0.81184,2598.2,2598.0,5.85375]
[1646764556465,9.63140725,2598.6,2598.2,5.85375]
[1646764556711,9.63140725,2598.6,2598.0,0.9625482]
[1646764556712,9.63140725,2598.6,2598.4,0.71888219]
[1646764557108,0.00411725,2598.6,2598.4,0.71888219]
[1646764557309,0.00411725,2598.6,2598.5,21.598]
[1646764557310,2.034e-05,2598.6,2598.5,21.598]
[1646764557511,0.96249,2598.8,2598.7,11.63]
[1646764557713,0.96249,2598.8,2598.7,15.598]
[1646764557908,0.96249,2598.8,2598.7,13.098]
[1646764558109,1.94144929,2598.9,2598.7,1.8496]
[1646764558309,1.94144929,2598.9,2598.7,0.8496]
[1646764558310,1.92497,2598.9,2598.7,0.8496]
[1646764558908,1.92497,2598.9,2598.5,1.49867086]
[1646764559109,1.92497,2598.9,2598.8,0.74516753]
[1646764559315,1.92497,2598.9,2598.8,1.21316753]
[1646764559508,1.92497,2598.9,2598.8,0.468]
[1646764559914,2.88707,2599.0,2598.8,0.468]
[1646764560110,2.88707,2599.0,2598.8,0.418]
[1646764560308,3.18707,2599.0,2598.8,0.418]
[1646764561060,3.18707,2599.0,2598.3,11.63]
[1646764561262,3.84949,2599.6,2598.5,11.63]
[1646764561461,0.96248,2599.1,2599.0,0.3]
[1646764561760,0.96248,2599.1,2599.0,12.098]
[1646764561965,0.96248,2599.1,2599.0,0.468]
[1646764562160,0.96248,2599.1,2597.9,1.0]
[1646764562161,1.45786332,2598.5,2597.9,1.0]
[1646764562361,3.84949,2599.6,2598.0,0.468]
[1646764562362,0.96249,2598.4,2598.0,0.468]
[1646764562561,3.84949,2599.6,2598.1,0.468]
[1646764562961,0.13819997,2599.9,2598.7,0.9621846]
[1646764563161,0.13819997,2599.9,2599.1,12.0116]
[1646764563360,0.13819997,2599.9,2598.7,1.92433]
[1646764563361,0.96217,2599.6,2599.4,12.45214982]
[1646764563561,0.96217,2599.6,2599.5,12.098]
[1646764563760,0.96217,2599.6,2599.5,13.098]
[1646764563960,0.96217,2599.6,2599.5,14.0600645]
[1646764564513,0.96217,2599.6,2599.5,14.0537405]
[1646764564706,0.96217,2599.6,2599.5,2.4237405]
[1646764564907,0.96217,2599.6,2599.5,14.0537405]
[1646764565207,0.96429396,2599.6,2599.5,14.0537405]
[1646764565406,0.00212396,2599.6,2599.5,2.4237405]
[1646764565609,0.00212396,2599.6,2599.5,14.0537405]
[1646764566010,0.00212396,2599.6,2599.5,0.468]
[1646764566211,0.00212396,2599.6,2599.0,4.8484162]
[1646764566212,0.00212396,2599.6,2599.1,0.468]
[1646764566413,0.96236,2599.5,2599.1,0.468]
[1646764567215,1.79888287,2599.5,2599.1,0.468]
[1646764567413,1.79888287,2599.5,2599.1,0.768]
[1646764567613,0.96236,2599.5,2599.1,12.398]
[1646764567814,0.96236,2599.5,2599.1,13.398]
[1646764568266,7.64e-06,2599.4,2599.1,13.398]
[1646764569162,0.00212396,2599.6,2599.1,13.398]
[1646764569366,0.00212396,2599.6,2599.3,11.63]
[1646764569569,0.00212396,2599.6,2599.5,11.63]
[1646764569763,0.00212396,2599.6,2599.5,12.098]
[1646764569965,9.484e-05,2599.7,2599.5,13.098]
[1646764570168,9.484e-05,2599.7,2599.6,12.49444786]
[1646764570468,3.5,2600.3,2599.8,0.00070516]
[1646764570767,0.90925463,2600.5,2599.8,0.00070516]
[1646764570768,0.03544544,2600.0,2599.9,0.468]
[1646764571268,0.78685319,2600.0,2599.8,0.00070516]
[1646764572116,1.34387,2599.8,2598.4,0.00432598]
[1646764572410,3.0,2598.9,2598.4,3.50432598]
[1646764572810,1.92503,2599.0,2597.7,3.7347175]
[1646764572811,3.53237974,2599.0,2597.7,3.7347175]
[1646764573012,3.0,2598.5,2597.4,1.9254603]
[1646764573213,3.0,2598.1,2597.3,1.0]
[1646764573410,1.3446,2598.0,2597.3,1.0]
[1646764573811,0.81428225,2597.8,2597.0,11.63]
[1646764574213,0.3816,2597.7,2596.4,0.468]
[1646764574412,0.3816,2597.7,2596.5,1.57670305]
[1646764574413,1.34488,2597.4,2596.5,1.57670305]
[1646764574614,0.96336,2597.2,2596.6,1.57670305]
[1646764574809,0.96336,2597.2,2596.2,0.468]
[1646764575014,0.3816,2597.1,2596.3,1.5768093]
[1646764575212,4.29802522,2597.0,2596.3,1.5768093]
[1646764575466,4.29802522,2597.0,2596.8,0.00438025]
[1646764575867,6.22486522,2597.0,2596.8,0.00438025]
[1646764576571,1.92684,2597.0,2596.8,0.00438025]
[1646764576768,3.0,2597.6,2596.3,11.63]
[1646764577070,1.92621,2597.3,2596.2,0.468]
[1646764577273,2.22621,2597.3,2596.3,1.57683822]
[1646764577468,0.96334,2597.0,2596.3,1.57683822]
[1646764577669,0.82700876,2596.8,2596.3,1.57683822]
[1646764578069,0.3,2596.9,2596.0,16.598]
[1646764578269,0.3816,2597.1,2596.1,1.57682814]
[1646764578570,0.3816,2596.8,2596.1,13.20682814]
[1646764578769,0.96339,2596.8,2596.2,1.57682814]
[1646764578970,1.26339,2596.8,2596.2,1.57682814]
[1646764579224,1.26339,2596.8,2596.2,2.27422521]
[1646764579418,1.26339,2596.8,2596.2,0.69739707]
[1646764579925,5.73820336,2598.2,2596.2,0.69739707]
[1646764579926,3.85314,2597.9,2596.5,12.0116]
[1646764580119,3.0,2598.0,2596.7,12.0116]
[1646764580318,3.0,2598.0,2596.9,11.63]
[1646764580519,3.0,2598.0,2597.0,3.5]
[1646764580718,0.3816,2597.9,2597.1,0.74622711]
[1646764581120,1.92582,2597.9,2597.2,15.13]
[1646764581326,0.13819997,2598.3,2597.2,16.43]
[1646764581521,0.13819997,2598.3,2597.4,11.63]
[1646764581721,0.13819997,2598.3,2597.2,1.77251894]
[1646764581921,0.3816,2598.1,2597.3,1.0]
[1646764582122,0.3816,2598.1,2597.2,1.77251894]
[1646764582123,0.3816,2598.1,2597.2,0.30451894]
[1646764582328,0.3816,2597.8,2597.2,0.30451894]
[1646764582721,0.3816,2597.8,2597.6,0.00451835]
[1646764582987,1.04243765,2597.7,2597.6,0.00451835]
[1646764583194,0.3816,2597.7,2597.6,0.00451835]
[1646764583396,1.26322,2597.8,2597.6,0.00451835]
[1646764583592,1.34482,2597.8,2597.6,0.00451835]
[1646764583991,1.34482,2597.8,2597.5,0.00451848]
[1646764584593,4.34482,2597.8,2597.5,0.00451848]
[1646764584999,0.3816,2597.6,2596.6,2.3940035]
[1646764585204,5.5,2597.7,2596.0,0.468]
[1646764585205,3.3816,2596.7,2596.0,0.468]
[1646764585402,3.3816,2596.7,2595.4,2.71535893]
[1646764585403,3.0,2596.5,2595.5,1.16755653]
[1646764585598,3.0,2596.5,2596.1,1.57676984]
[1646764585998,0.3,2596.6,2595.7,0.92230003]
[1646764586199,0.96346,2597.2,2595.8,2.54032694]
[1646764586402,0.3816,2596.5,2595.9,1.57690044]
[1646764587045,0.3,2596.7,2596.1,0.71914183]
[1646764587245,1.92685,2597.5,2596.1,0.71914183]
[1646764587246,3.0,2597.2,2596.2,1.57682232]
[1646764587446,11.824,2597.7,2596.3,3.5]
[1646764587447,0.3816,2597.1,2596.3,3.5]
[1646764587849,0.3816,2597.1,2596.3,4.5]
[1646764588046,2.3572,2597.7,2596.1,19.70914183]
[1646764588047,0.3816,2597.3,2596.1,12.57914183]
[1646764588248,3.0,2597.0,2596.2,1.57655535]
[1646764588646,3.0,2597.0,2596.6,0.00459237]
[1646764588846,0.3,2597.1,2596.6,0.00459237]
[1646764589048,0.76421957,2597.0,2596.6,0.00459237]
[1646764589248,3.3816,2596.7,2596.6,0.00459237]
[1646764590047,3.3816,2596.7,2596.1,8.36]
[1646764590354,1.69981936,2596.7,2596.1,8.36]
[1646764590571,0.3816,2596.6,2596.1,8.36]
[1646764591172,0.3816,2596.6,2596.3,0.00459276]
[1646764591374,1.69981936,2596.4,2596.3,0.00459276]
[1646764591574,0.3,2596.5,2596.3,0.00459276]
[1646764591882,0.3816,2596.4,2596.3,0.00459276]
[1646764592475,0.3816,2596.4,2596.2,0.00459282]
[1646764593280,1.31821936,2596.6,2596.2,0.00459282]
[1646764593476,1.26357,2596.7,2596.2,0.00854362]
[1646764593683,2.28155936,2597.1,2596.2,15.1339508]
[1646764593882,2.28155936,2597.1,2596.3,11.63]
[1646764594212,2.28155936,2597.1,2596.4,3.5]
[1646764594213,1.31821936,2597.1,2596.4,3.5]
[1646764594407,1.31821936,2597.1,2596.5,0.79523652]
[1646764594612,1.31821936,2597.1,2596.6,3.5]
[1646764594814,1.92633,2597.8,2596.7,11.63]
[1646764595014,1.31821936,2597.7,2596.8,15.13]
[1646764595213,1.92633,2597.8,2596.8,16.13]
[1646764595421,0.96308,2597.9,2596.8,16.13]
[1646764595816,0.96308,2597.9,2596.8,16.5116]
[1646764596017,0.96308,2597.9,2597.5,0.78557037]
[1646764596319,0.96308,2597.9,2597.5,1.08557037]
[1646764597120,1.31821936,2598.2,2597.5,1.08557037]
[1646764597318,0.01365096,2598.3,2597.5,1.08557037]
[1646764597617,0.01365096,2598.3,2597.4,0.00405058]
[1646764598072,1.31821936,2597.6,2597.4,0.00405058]
[1646764598266,0.3,2597.7,2597.4,0.00810124]
[1646764598471,1.92618,2598.2,2597.4,0.92937536]
[1646764598666,1.31821936,2597.7,2597.4,0.92937536]
[1646764598870,1.31821936,2597.7,2597.4,0.30405066]
[1646764599068,1.69981936,2597.7,2597.4,0.30405066]
[1646764599471,0.3,2597.8,2597.4,0.00810128]
[1646764599670,0.3,2597.6,2597.4,0.00405062]
[1646764599872,0.3,2597.8,2597.4,0.00405062]
[1646764600272,1.33187064,2598.3,2597.4,0.00405062]
[1646764600675,0.01365128,2598.3,2597.4,0.00405062]
[1646764600872,1.31821936,2598.1,2597.4,0.00403087]
[1646764601074,0.3816,2598.0,2597.4,0.00403087]
[1646764601917,0.3816,2598.0,2597.4,0.00806178]
[1646764602120,0.3816,2598.0,2597.4,0.00403091]
[1646764602320,2.58126936,2598.1,2597.4,0.00403091]
[1646764602321,0.3816,2597.7,2597.4,0.00403091]
[1646764602535,1.69981936,2597.6,2597.4,0.00403091]
[1646764604325,1.69981936,2597.6,2597.4,0.00806587]
[1646764604520,3.62605936,2597.6,2597.4,0.00403496]
[1646764604921,3.24445936,2597.6,2597.4,0.00403496]
[1646764605122,1.26315,2597.7,2597.4,0.00403496]
[1646764605322,1.31821936,2597.6,2597.4,0.00403496]
[1646764605566,1.31821936,2597.6,2597.4,0.00806992]
[1646764605768,1.31821936,2597.6,2597.4,0.00403496]
[1646764606071,0.3816,2597.5,2597.4,0.00403496]
[1646764607069,1.17928512,2597.5,2597.4,0.00403496]
[1646764607469,1.17928512,2597.5,2596.4,0.68590721]
[1646764607669,0.3816,2597.2,2596.4,0.68590721]
[1646764608072,0.3816,2597.2,2595.8,3.5]
[1646764608273,0.3816,2597.2,2595.9,1.57676351]
[1646764608274,1.31821936,2596.5,2595.9,1.57676351]
[1646764608472,1.31821936,2596.3,2595.4,3.5]
[1646764608678,1.9272,2596.2,2595.5,5.07696708]
[1646764608872,1.31821936,2596.0,2595.6,1.57696708]
[1646764609526,1.2636,2596.1,2595.6,1.57696708]
[1646764609726,0.9636,2596.1,2595.6,1.57696708]
[1646764610228,0.9636,2596.1,2595.6,1.87696708]
[1646764610428,1.89024847,2596.2,2595.7,1.57696708]
[1646764610627,1.31821936,2596.1,2595.7,1.57696708]
[1646764611030,0.9636,2596.1,2595.7,1.57696708]
[1646764611434,1.31821936,2595.9,2595.7,1.57696708]
[1646764611629,1.31821936,2595.9,2595.8,0.00459547]
[1646764612831,1.31821936,2595.9,2595.7,0.00431989]
[1646764613066,2.28198936,2595.9,2595.7,0.00431989]
[1646764613266,2.58198936,2595.9,2595.7,0.00431989]
[1646764613467,2.96358936,2595.9,2595.7,0.00431989]
[1646764613873,2.58198936,2595.9,2595.7,0.00767188]
[1646764614170,2.58198936,2595.9,2595.7,0.00335199]
[1646764615770,1.26377,2595.9,2595.7,0.00335199]
[1646764616168,2.58198936,2595.9,2595.7,0.00335199]
[1646764616373,2.58198936,2595.9,2595.7,0.004375]
[1646764616575,3.5,2595.8,2595.7,0.004375]
[1646764617418,3.5,2595.8,2595.7,1.58177129]
[1646764617822,3.8816,2595.8,2595.6,0.00437506]
[1646764618020,3.5,2595.8,2595.6,0.00437506]
[1646764618423,1.31821936,2595.7,2595.6,0.00437506]
[1646764619030,0.96386,2595.6,2594.8,0.8810936]
[1646764619225,3.5,2595.5,2594.8,1.1810936]
[1646764619428,1.31821936,2595.4,2594.8,0.48153707]
[1646764619624,0.86631567,2595.4,2594.8,0.18153707]
[1646764619826,2.18453503,2595.4,2594.8,0.18153707]
[1646764620027,1.31821936,2595.4,2595.1,0.00424049]
[1646764620230,1.92773,2595.4,2595.1,0.00424049]
[1646764621282,1.92773,2595.4,2595.0,0.3]
[1646764622283,3.8,2595.5,2595.0,0.3]
[1646764623083,3.8,2595.5,2595.1,12.46196542]
[1646764623084,3.5,2595.5,2595.1,12.46196542]
[1646764623287,3.5,2595.5,2595.3,11.63]
[1646764623486,3.5,2595.5,2595.4,15.598]
[1646764623487,1.81574998,2595.5,2595.4,15.598]
[1646764623885,1.81574998,2595.5,2595.4,16.598]
[1646764624085,4.20914936,2596.1,2595.4,13.098]
[1646764624086,3.5,2596.0,2595.4,13.098]
[1646764624319,3.5,2596.0,2595.4,1.0]
[1646764624524,3.5,2596.0,2595.3,0.3]
[1646764624525,1.31821936,2595.6,2595.3,0.3]
[1646764624718,1.31821936,2595.4,2595.1,0.30450437]
[1646764624917,1.31821936,2595.4,2594.6,1.69955653]
[1646764624918,1.31821936,2595.4,2595.3,0.00450974]
[1646764626119,3.24607936,2595.4,2595.2,0.00450987]
[1646764626320,6.74607936,2595.4,2595.2,0.00450987]
[1646764626721,7.71004936,2595.4,2595.2,0.00450987]
[1646764627120,5.42786,2595.4,2595.2,0.00901981]
[1646764627320,5.42786,2595.4,2595.2,0.00450994]
[1646764628364,5.42786,2595.4,2595.2,0.00846754]
[1646764628566,5.42786,2595.4,2595.2,0.0039576]
[1646764628769,1.69981936,2595.3,2595.2,0.0039576]
[1646764629367,1.69981936,2595.3,2594.2,0.69955653]
[1646764629577,5.77479765,2595.4,2594.1,0.69955653]
[1646764629578,1.31821936,2594.5,2594.1,0.69955653]
[1646764629779,1.31821936,2594.5,2594.0,0.01583719]
[1646764629975,1.31821936,2594.3,2594.0,0.01583719]
[1646764630573,3.5,2594.6,2594.0,0.01583719]
[1646764630976,1.92846,2594.3,2593.8,12.34912923]
[1646764631175,1.92846,2594.3,2593.8,11.6495727]
[1646764631576,1.92846,2594.3,2593.8,11.9495727]
[1646764631824,1.92846,2594.3,2593.8,12.9495727]
[1646764632029,3.8816,2594.2,2593.9,0.00433055]
[1646764632235,7.3816,2594.2,2593.9,0.00433055]
[1646764632425,10.27527,2594.2,2593.9,0.00433055]
[1646764632627,0.3816,2594.0,2593.9,0.00433055]
[1646764632827,0.3816,2594.0,2592.6,0.69955653]